bitfinex-derivatives/quotes_BNBF0:USTF0_20250329
["timestamp","ask_amount","ask_price","bid_price","bid_amount"]
[1743232133039,0.30340897,606.34,606.02,2.295]
[1743232135041,0.30340897,606.34,606.02,1.313]
[1743232135633,0.30340897,606.4,606.02,1.313]
[1743232136639,0.28723062,606.39,606.02,1.313]
[1743232136943,0.30340897,606.38,606.02,1.313]
[1743232137541,0.30340897,606.38,606.02,0.595]
[1743232138637,0.30340897,606.4,606.02,0.595]
[1743232138838,0.30340897,606.39,606.02,0.595]
[1743232139144,0.30340897,606.4,606.02,0.595]
[1743232139344,0.30340897,606.38,606.02,0.595]
[1743232139539,0.30340897,606.37,606.02,0.595]
[1743232140038,0.30340897,606.36,606.02,0.595]
[1743232140239,0.30340897,606.38,606.02,0.595]
[1743232141646,0.30340897,606.4,606.02,0.595]
[1743232141846,0.28723299,606.37,606.02,0.595]
[1743232142052,0.30340897,606.36,606.02,0.595]
[1743232143450,0.63324603,606.36,606.02,0.595]
[1743232143747,0.30340897,606.35,606.02,0.595]
[1743232145251,0.63325147,606.35,606.02,0.595]
[1743232145451,0.63325691,606.34,606.02,0.595]
[1743232145651,0.63326235,606.33,606.02,0.595]
[1743232145852,0.63326779,606.32,606.02,0.595]
[1743232146054,0.63327323,606.31,606.02,0.595]
[1743232146254,0.63327867,606.3,606.02,0.595]
[1743232146446,0.32987514,606.29,606.02,0.595]
[1743232146752,0.30340897,606.28,606.02,0.595]
[1743232146956,0.32988602,606.27,606.02,0.595]
[1743232147155,0.30340897,606.26,606.02,0.595]
[1743232147754,0.28728041,606.25,606.02,0.595]
[1743232147949,0.30340897,606.24,606.02,0.595]
[1743232150651,0.30340897,606.23,606.02,0.595]
[1743232150850,0.30340897,606.22,606.02,0.595]
[1743232151257,0.28728278,606.23,606.02,0.595]
[1743232151555,0.3034995,606.22,606.02,0.595]
[1743232152357,0.32991867,606.21,606.02,0.595]
[1743232153355,0.30352934,606.2,606.02,0.595]
[1743232153559,0.32992956,606.19,606.02,0.595]
[1743232153760,0.30352934,606.18,606.02,0.595]
[1743232154460,0.32994044,606.17,606.02,0.595]
[1743232154661,0.30352934,606.16,606.02,0.595]
[1743232155759,0.32995133,606.15,606.02,0.595]
[1743232156159,0.30352934,606.14,606.02,0.595]
[1743232156364,0.32996221,606.13,606.02,0.595]
[1743232156556,0.30352934,606.12,606.02,0.595]
[1743232156758,0.3299731,606.11,606.02,0.595]
[1743232157062,0.30352934,606.1,606.02,0.595]
[1743232157263,0.63350789,606.1,606.02,0.595]
[1743232157459,0.30352934,606.09,606.02,0.595]
[1743232159362,0.32998944,606.08,606.02,0.595]
[1743232159765,0.30352934,606.07,606.02,0.595]
[1743232160065,0.33000033,606.06,606.02,0.595]
[1743232160264,0.30352934,606.05,606.02,0.595]
[1743232162864,0.33000033,606.06,606.02,0.595]
[1743232165667,0.28735276,606.05,606.02,0.595]
[1743232167264,0.28735276,606.05,605.76,0.987]
[1743232167765,0.30364888,606.04,605.76,0.987]
[1743232169568,0.33001666,606.03,605.76,0.987]
[1743232169773,0.30373677,606.02,605.76,0.987]
[1743232169968,0.30373677,606.02,605.7,0.876]
[1743232170472,0.33002755,606.01,605.7,0.876]
[1743232170670,0.30373677,606.0,605.7,0.876]
[1743232170876,0.33003844,605.99,605.7,0.876]
[1743232171067,0.30373677,605.98,605.7,0.876]
[1743232171274,0.33004934,605.97,605.7,0.876]
[1743232171475,0.30373677,605.96,605.7,0.876]
[1743232171779,0.5911916,605.96,605.7,0.876]
[1743232172073,0.30373677,605.95,605.7,0.876]
[1743232172474,0.33006568,605.94,605.7,0.876]
[1743232172674,0.30373677,605.93,605.7,0.876]
[1743232172879,0.33007657,605.92,605.7,0.876]
[1743232173180,0.30373677,605.91,605.7,0.876]
[1743232173979,0.33008747,605.9,605.7,0.876]
[1743232174375,0.30373677,605.89,605.7,0.876]
[1743232174581,0.33009836,605.88,605.7,0.876]
[1743232174776,0.30373677,605.87,605.7,0.876]
[1743232174976,0.63384058,605.87,605.7,0.876]
[1743232175281,0.30373677,605.86,605.7,0.876]
[1743232177979,0.30373677,605.86,605.66,0.623]
[1743232178782,0.33011471,605.85,605.66,0.623]
[1743232178982,0.30373677,605.84,605.66,0.623]
[1743232179277,0.33012561,605.83,605.59,0.86]
[1743232179482,0.30373677,605.82,605.59,0.86]
[1743232179679,0.33013651,605.81,605.59,0.86]
[1743232179879,0.30373677,605.8,605.59,0.86]
[1743232180782,0.33014741,605.79,605.59,0.86]
[1743232180984,0.30380826,605.78,605.59,0.86]
[1743232181684,0.33015831,605.77,605.59,0.86]
[1743232181987,0.30380826,605.76,605.59,0.86]
[1743232182285,0.33016921,605.75,605.59,0.86]
[1743232182485,0.30380826,605.74,605.59,0.86]
[1743232182781,0.63400892,605.73,605.59,0.86]
[1743232182985,0.63401437,605.72,605.59,0.86]
[1743232183286,0.63401982,605.71,605.59,0.86]
[1743232183489,0.33019646,605.7,605.59,0.86]
[1743232183890,0.61775105,605.7,605.59,0.86]
[1743232184186,0.61775105,605.7,605.51,0.678]
[1743232185793,0.30382297,605.69,605.51,0.678]
[1743232186893,0.28754152,605.68,605.51,0.678]
[1743232187093,0.30382297,605.67,605.51,0.678]
[1743232187990,0.30382297,605.67,605.35,0.876]
[1743232189797,0.2875629,605.66,605.35,0.876]
[1743232189998,0.30382297,605.65,605.35,0.876]
[1743232190398,0.2875629,605.66,605.35,0.876]
[1743232191396,0.3038102,605.65,605.35,0.876]
[1743232192804,0.28756528,605.64,605.35,0.876]
[1743232193004,0.59137548,605.64,605.35,0.876]
[1743232193205,0.3038102,605.63,605.35,0.876]
[1743232195607,0.3038102,605.69,605.35,0.876]
[1743232195907,0.28757003,605.62,605.35,0.876]
[1743232196402,0.3038102,605.61,605.35,0.876]
[1743232197103,0.63405573,605.61,605.35,0.876]
[1743232197506,0.3038102,605.6,605.35,0.876]
[1743232197707,0.33024553,605.61,605.35,0.876]
[1743232197905,0.30382026,605.6,605.35,0.876]
[1743232198310,0.33024553,605.61,605.35,0.876]
[1743232198605,0.30383404,605.6,605.35,0.876]
[1743232199209,0.33024553,605.61,605.35,0.876]
[1743232199709,0.28753796,605.6,605.35,0.876]
[1743232200009,0.33025644,605.59,605.35,0.876]
[1743232202710,0.28752608,605.58,605.35,0.876]
[1743232204412,0.33025644,605.59,605.35,0.876]
[1743232204913,0.28759023,605.57,605.35,0.876]
[1743232211511,0.28759023,605.57,605.26,0.605]
[1743232213416,0.33025644,605.59,605.26,0.605]
[1743232221625,0.33025644,605.59,605.18,0.867]
[1743232223521,0.28753558,605.58,605.18,0.867]
[1743232224828,0.28753558,605.58,605.16,0.72]
[1743232228529,0.33025644,605.59,605.16,0.72]
[1743232234736,0.28759261,605.58,605.16,0.72]
[1743232235338,0.28759261,605.58,605.15,1.371]
[1743232237442,0.33025644,605.59,605.15,1.371]
[1743232237943,0.28759974,605.57,605.15,1.371]
[1743232239637,2.50993003,606.9,605.15,1.371]
[1743232239840,0.32955444,606.88,605.15,1.371]
[1743232240042,0.28750945,605.95,605.15,1.371]
[1743232240240,0.32955444,606.88,605.15,1.371]
[1743232240443,0.30362405,606.87,605.15,1.371]
[1743232240644,0.28737175,605.94,605.15,1.371]
[1743232240844,0.32955444,606.88,605.15,1.371]
[1743232241145,0.30362295,606.87,605.15,1.371]
[1743232241443,0.32957073,606.85,605.15,1.371]
[1743232241647,0.30362295,606.84,605.15,1.371]
[1743232241942,0.32958702,606.82,605.15,1.371]
[1743232242141,0.30362295,606.81,605.15,1.371]
[1743232242346,0.32960332,606.79,605.15,1.371]
[1743232242549,2.50993003,606.77,605.15,1.371]
[1743232242747,0.32962505,606.75,605.15,1.371]
[1743232243240,0.30362295,606.74,605.15,1.371]
[1743232243444,0.32964135,606.72,605.15,1.371]
[1743232243741,0.30362295,606.71,605.15,1.371]
[1743232243943,0.32965765,606.69,605.15,1.371]
[1743232244244,0.30362295,606.68,605.15,1.371]
[1743232244447,0.32967395,606.66,605.15,1.371]
[1743232244847,0.30362295,606.65,605.15,1.371]
[1743232245049,0.32969025,606.63,605.15,1.371]
[1743232245547,0.30362295,606.62,605.15,1.371]
[1743232245843,0.32970656,606.6,605.15,1.371]
[1743232246044,0.30362295,606.59,605.15,1.371]
[1743232246248,0.32972286,606.57,605.15,1.371]
[1743232246548,2.50993003,606.33,605.15,1.371]
[1743232246747,0.32986426,606.31,605.15,1.371]
[1743232246946,0.30362295,606.3,605.15,1.371]
[1743232247143,0.32988058,606.28,605.15,1.371]
[1743232247343,0.30362295,606.27,605.15,1.371]
[1743232247643,0.32989146,606.26,605.15,1.371]
[1743232247844,0.30362295,606.25,605.15,1.371]
[1743232248044,0.32990234,606.24,605.15,1.371]
[1743232248248,0.30362295,606.23,605.15,1.371]
[1743232248446,0.32991323,606.22,605.15,1.371]
[1743232248744,0.30362295,606.21,605.15,1.371]
[1743232248948,0.32992411,606.2,605.15,1.371]
[1743232249251,0.30362295,606.19,605.15,1.371]
[1743232249448,0.329935,606.18,605.15,1.371]
[1743232249645,0.30362295,606.17,605.15,1.371]
[1743232249947,0.32994588,606.16,605.15,1.371]
[1743232250148,0.30362295,606.15,605.15,1.371]
[1743232250349,0.32995677,606.14,605.15,1.371]
[1743232250644,0.30362295,606.13,605.15,1.371]
[1743232250850,0.63358516,606.13,605.15,1.371]
[1743232251149,0.30362295,606.12,605.15,1.371]
[1743232253749,0.28744533,606.11,605.15,1.371]
[1743232253945,0.30362295,606.1,605.15,1.371]
[1743232254147,0.32998399,606.09,605.15,2.04]
[1743232254347,0.30362295,606.08,605.15,2.04]
[1743232254543,0.32999488,606.07,605.15,2.04]
[1743232254747,0.30362295,606.06,605.15,2.04]
[1743232254946,0.33000577,606.05,605.15,2.04]
[1743232255150,0.30362295,606.04,605.15,2.04]
[1743232255950,0.30362295,606.04,605.15,2.828]
[1743232256649,0.28746195,606.03,605.15,2.828]
[1743232257852,0.30363052,606.02,605.15,3.436]
[1743232259552,0.28746195,606.03,605.15,3.436]
[1743232259748,0.30363114,606.02,605.15,3.436]
[1743232260952,0.28746195,606.03,605.15,3.436]
[1743232261448,0.33000577,606.05,605.15,3.436]
[1743232261654,0.3036303,606.04,605.15,3.436]
[1743232261849,0.28746195,606.02,605.15,3.436]
[1743232264554,0.30363163,606.01,605.15,3.436]
[1743232264754,0.28746195,606.01,605.15,3.436]
[1743232266254,0.30363375,606.0,605.15,3.436]
[1743232267751,0.33003844,605.99,605.15,3.436]
[1743232268051,0.30363375,605.98,605.15,3.436]
[1743232268256,0.63367764,605.98,605.15,3.436]
[1743232268553,0.30363375,605.97,605.15,3.436]
[1743232271352,0.33005478,605.96,605.15,3.436]
[1743232271556,0.30363375,605.95,605.15,3.436]
[1743232271856,0.33006568,605.94,605.15,3.436]
[1743232272057,0.30363375,605.93,605.15,3.436]
[1743232273454,0.33007657,605.92,605.15,3.436]
[1743232273657,0.30363375,605.91,605.15,3.436]
[1743232273859,0.33008747,605.9,605.15,3.436]
[1743232274053,0.30363375,605.89,605.15,3.436]
[1743232274255,0.33009836,605.88,605.15,3.436]
[1743232274656,0.30363375,605.87,605.15,3.436]
[1743232274855,0.33010926,605.86,605.15,3.436]
[1743232275056,0.30363375,605.85,605.15,3.436]
[1743232275359,0.33012016,605.84,605.15,3.436]
[1743232275655,0.30363375,605.83,605.15,3.436]
[1743232275859,0.33013106,605.82,605.15,3.436]
[1743232276064,0.30363375,605.81,605.15,3.436]
[1743232276253,0.33014196,605.8,605.15,3.436]
[1743232276458,0.30363375,605.79,605.15,3.436]
[1743232276658,0.33015286,605.78,605.15,3.436]
[1743232276855,0.30363375,605.77,605.15,3.436]
[1743232277061,0.33016376,605.76,605.15,3.436]
[1743232277356,0.30363375,605.75,605.15,3.436]
[1743232277657,0.33017466,605.74,605.15,3.436]
[1743232277861,0.30363375,605.73,605.15,3.436]
[1743232279862,0.28757241,605.72,605.15,3.436]
[1743232280066,0.30363375,605.71,605.15,3.436]
[1743232281671,0.33019646,605.7,605.15,3.436]
[1743232282171,0.30380873,605.69,605.15,3.436]
[1743232282366,0.33020737,605.68,605.15,3.436]
[1743232282670,0.30380873,605.67,605.15,3.436]
[1743232282866,0.33021827,605.66,605.15,3.436]
[1743232283273,0.30380873,605.65,605.15,3.436]
[1743232283470,0.33022917,605.64,605.15,3.436]
[1743232283766,0.30380873,605.63,605.15,3.436]
[1743232283970,0.33024008,605.62,605.15,3.436]
[1743232284171,0.30380873,605.61,605.15,3.436]
[1743232284471,0.33025099,605.6,605.15,3.436]
[1743232284771,0.30380873,605.59,605.15,3.436]
[1743232284971,0.33026189,605.58,605.15,3.436]
[1743232285775,0.30383332,605.57,605.15,3.436]
[1743232285968,0.33026189,605.58,605.15,3.436]
[1743232286170,0.33026189,605.58,605.15,0.788]
[1743232286474,0.30382943,605.57,605.15,0.788]
[1743232289078,0.28760925,605.56,605.15,0.788]
[1743232289377,0.30382943,605.55,605.15,0.788]
[1743232290972,0.28760925,605.56,605.15,0.788]
[1743232294580,0.33026189,605.58,605.15,0.788]
[1743232294979,0.28751658,605.57,605.15,0.788]
[1743232296082,0.33026189,605.58,605.15,0.788]
[1743232303787,0.28758905,605.57,605.15,0.788]
[1743232306485,0.33026189,605.58,605.15,0.788]
[1743232306886,0.28761044,605.56,605.15,0.788]
[1743232308393,0.33027825,605.55,605.15,0.788]
[1743232308685,0.30386362,605.54,605.15,0.788]
[1743232309586,0.33027825,605.55,605.15,0.788]
[1743232309892,0.28766869,605.53,605.15,0.788]
[1743232310089,0.28766869,605.53,605.14,0.59]
[1743232311294,0.28766869,605.53,605.13,0.724]
[1743232311595,0.30392659,605.52,605.13,0.724]
[1743232311794,0.33030007,605.51,605.13,0.724]
[1743232311993,0.30392659,605.5,605.13,0.724]
[1743232312495,0.33030007,605.51,605.13,0.724]
[1743232312695,0.30393971,605.5,605.13,0.724]
[1743232312995,0.33030007,605.51,605.13,0.724]
[1743232313795,0.28763659,605.5,605.13,0.724]
[1743232314702,0.30398606,605.49,605.13,0.724]
[1743232315303,0.33031644,605.48,605.13,0.724]
[1743232315702,0.30398606,605.47,605.13,0.724]
[1743232315898,0.33032735,605.46,605.13,0.724]
[1743232316303,0.30398606,605.45,605.13,0.724]
[1743232316803,0.28767463,605.44,605.13,0.724]
[1743232317104,0.30398606,605.43,605.13,0.724]
[1743232318703,0.30398606,605.45,605.13,0.724]
[1743232318903,0.30398606,605.44,605.13,0.724]
[1743232319202,0.30398606,605.43,605.13,0.724]
[1743232319603,0.30398606,605.42,605.13,0.724]
[1743232319806,0.28767463,605.42,605.13,0.724]
[1743232320398,0.28767463,605.42,605.12,0.651]
[1743232321403,0.28767463,605.42,605.1,0.825]
[1743232321699,0.33032735,605.46,605.1,0.825]
[1743232322005,0.30392553,605.45,605.1,0.825]
[1743232322402,0.30392553,605.45,603.36,1.21815617]
[1743232322603,0.30392553,605.45,603.37,0.29899901]
[1743232322906,0.28766631,605.44,603.38,0.29899901]
[1743232323098,0.30392553,605.43,603.39,0.29899901]
[1743232323298,0.30392553,605.43,603.53,1.21815617]
[1743232323603,0.30392553,605.43,603.54,0.29899901]
[1743232323899,0.30392553,605.43,603.56,0.33136722]
[1743232324402,0.30392553,605.43,603.57,0.29899901]
[1743232324605,0.33032735,605.46,603.57,0.29899901]
[1743232324801,0.33032735,605.46,603.58,0.93699901]
[1743232325107,0.33032735,605.46,603.59,0.29899901]
[1743232325307,0.33032735,605.46,603.6,0.29899901]
[1743232325601,0.28775313,605.45,603.6,0.29899901]
[1743232325906,0.5916203,605.45,603.61,0.29899901]
[1743232326103,0.28775313,605.45,603.62,0.29899901]
[1743232326304,0.28775313,605.45,603.63,0.29899901]
[1743232326600,0.28775313,605.45,603.65,0.33131781]
[1743232326805,0.28775313,605.45,603.66,0.29872979]
[1743232327105,0.28775313,605.45,603.68,0.33130135]
[1743232327402,0.28775313,605.45,603.69,0.29872979]
[1743232327601,0.33032735,605.46,603.71,0.33128488]
[1743232327806,0.30387149,605.45,603.72,0.29872979]
[1743232328105,0.30387149,605.45,603.74,0.33126842]
[1743232328306,0.30387149,605.45,603.75,0.29872979]
[1743232328506,0.33032735,605.46,603.77,0.33125196]
[1743232328702,0.33032735,605.46,603.78,0.29874741]
[1743232328703,0.28781977,605.44,603.78,0.29874741]
[1743232328907,0.30387635,605.43,603.8,0.3312355]
[1743232329101,0.30387635,605.43,603.81,0.29874741]
[1743232329306,0.30387635,605.43,603.83,0.33121905]
[1743232329707,0.30387635,605.43,603.84,0.29874741]
[1743232329907,0.30387635,605.43,603.86,0.33120259]
[1743232330111,0.30387635,605.43,603.87,0.29874741]
[1743232330312,0.30387635,605.43,603.89,0.33118614]
[1743232330509,0.30387635,605.43,603.9,0.29874741]
[1743232330709,0.30387635,605.43,603.92,0.33116969]
[1743232330910,0.30387635,605.43,603.93,0.29874741]
[1743232331111,0.30387635,605.43,603.95,0.33115324]
[1743232331411,0.30387635,605.43,603.96,0.29874741]
[1743232331611,0.28781977,605.44,603.98,0.33113679]
[1743232331812,0.28781977,605.44,603.99,0.29874741]
[1743232332111,0.28781977,605.44,604.01,0.33112034]
[1743232332308,0.33034372,605.43,604.02,0.29874741]
[1743232332707,0.33034372,605.43,604.03,0.33110938]
[1743232332913,0.33034372,605.43,604.04,0.29874741]
[1743232333114,0.33034372,605.43,604.05,0.33109841]
[1743232333409,0.33034372,605.43,604.06,0.29874741]
[1743232333614,0.33034372,605.43,604.07,0.33108745]
[1743232333911,0.33034372,605.43,604.08,0.29874741]
[1743232334110,0.33034372,605.43,604.09,0.33107649]
[1743232334410,0.33034372,605.43,604.1,0.29874741]
[1743232334615,0.33034372,605.43,604.11,0.33106553]
[1743232334813,0.28767582,605.42,604.11,0.33106553]
[1743232335012,0.28767582,605.42,604.12,0.29874741]
[1743232335213,0.28767582,605.42,604.13,0.33105457]
[1743232335410,0.30388966,605.41,604.13,0.62987084]
[1743232335610,0.30388966,605.41,604.14,0.29881627]
[1743232335915,0.28767582,605.42,604.14,0.29881627]
[1743232336514,0.33034372,605.43,604.15,0.33104361]
[1743232336808,0.33034372,605.43,604.16,0.29881627]
[1743232337017,0.33034372,605.43,604.17,0.33103265]
[1743232337218,0.33034372,605.43,604.18,0.29881627]
[1743232337419,0.33034372,605.43,604.19,0.33102169]
[1743232337719,0.33034372,605.43,604.2,0.29881627]
[1743232337921,0.33034372,605.43,604.21,0.33101074]
[1743232338219,0.33034372,605.43,604.22,0.29881627]
[1743232338615,0.33034372,605.43,604.23,0.33099978]
[1743232338822,0.33034372,605.43,604.24,0.29881627]
[1743232339016,0.33034372,605.43,604.25,0.33098882]
[1743232339418,0.33034372,605.43,604.26,0.29881627]
[1743232339618,0.33034372,605.43,604.27,0.33097787]
[1743232339922,0.33034372,605.43,604.28,0.29881627]
[1743232340118,0.33034372,605.43,604.28,0.62978866]
[1743232340322,0.33034372,605.43,604.29,0.29881627]
[1743232342823,0.28774599,605.42,604.29,0.29881627]
[1743232345627,0.33034372,605.43,604.29,0.29881627]
[1743232345927,0.28774837,605.42,604.29,0.29881627]
[1743232346927,0.28774837,605.42,604.29,1.06481627]
[1743232347227,0.28774837,605.42,604.3,0.29881627]
[1743232348527,0.33034372,605.43,604.3,0.29881627]
[1743232348828,0.28774718,605.42,604.3,0.29881627]
[1743232349026,0.28774718,605.42,604.3,0.62977771]
[1743232349227,0.28774718,605.42,604.31,0.62977223]
[1743232349425,0.28774718,605.42,604.32,0.62976675]
[1743232349626,0.33034372,605.43,604.33,0.62976128]
[1743232349927,0.33034372,605.43,604.34,0.6297558]
[1743232350121,0.33034372,605.43,604.35,0.62975033]
[1743232350326,0.33034372,605.43,604.36,0.33092858]
[1743232350523,0.33034372,605.43,604.37,0.29881627]
[1743232350722,0.33034372,605.43,604.38,0.33091763]
[1743232350930,0.33034372,605.43,604.39,0.29881627]
[1743232351828,0.61806711,605.43,604.38,0.33091763]
[1743232354729,0.33034372,605.43,604.38,0.33091763]
[1743232355029,0.61808257,605.43,604.38,0.33091763]
[1743232355526,0.61808257,605.43,604.39,0.83]
[1743232357533,0.33034372,605.43,604.39,0.83]
[1743232357833,0.61807662,605.43,604.39,0.83]
[1743232360534,0.33034372,605.43,604.39,0.83]
[1743232360930,0.61807662,605.43,604.39,0.83]
[1743232361136,0.61807662,605.43,604.4,0.844]
[1743232361636,0.61807662,605.43,604.41,0.29887904]
[1743232363437,0.33034372,605.43,604.41,0.29887904]
[1743232365536,0.33034372,605.43,604.42,0.29873275]
[1743232367641,0.33034372,605.43,604.42,0.62962848]
[1743232367841,0.33034372,605.43,604.43,0.29873275]
[1743232373351,0.28768295,605.56,604.44,0.33088478]
[1743232373652,0.28768295,605.56,604.45,0.29873275]
[1743232373847,0.28768295,605.56,604.46,0.33087383]
[1743232374151,0.28768295,605.56,604.47,0.29873275]
[1743232374451,0.28768295,605.56,604.48,0.33086289]
[1743232374746,0.28768295,605.56,604.49,0.29873275]
[1743232375151,0.28768295,605.56,604.49,0.62959016]
[1743232375355,2.50993003,606.24,604.5,0.62958469]
[1743232375648,0.28757003,605.66,604.51,0.62957922]
[1743232375852,0.30371703,605.65,604.52,0.29873275]
[1743232376353,0.30371703,606.0,604.52,0.29873275]
[1743232376553,0.30371703,606.0,604.53,0.33083552]
[1743232376753,0.61762867,605.99,604.53,0.33083552]
[1743232376953,0.63376092,605.98,604.54,0.29873275]
[1743232377250,0.33004934,605.97,604.54,0.29873275]
[1743232377454,0.63376637,605.97,604.54,0.29873275]
[1743232377655,0.30371703,605.96,604.54,0.29873275]
[1743232378449,0.33006023,605.95,604.54,0.29873275]
[1743232378655,0.30371703,605.94,604.54,0.29873275]
[1743232378854,0.33007113,605.93,604.54,0.29873275]
[1743232379055,0.33007113,605.93,604.54,0.6295628]
[1743232379258,0.30373794,605.92,604.55,0.29854761]
[1743232379452,0.33008202,605.91,604.54,0.33083005]
[1743232379655,0.30375374,605.9,604.55,0.29859121]
[1743232379852,0.33009292,605.89,604.54,0.33083005]
[1743232380256,0.63384683,605.89,604.56,0.29859163]
[1743232380456,0.30375391,605.88,604.57,0.29859163]
[1743232380657,0.33010381,605.87,604.54,0.33083005]
[1743232380857,0.63385514,605.87,604.58,0.29858479]
[1743232381054,0.30375133,605.86,604.59,0.29858479]
[1743232381356,0.33011471,605.85,604.55,0.29857904]
[1743232381659,0.30375133,605.84,604.56,0.29857904]
[1743232381858,0.59135582,605.84,604.55,0.29857904]
[1743232382059,0.30375133,605.83,604.56,0.794]
[1743232382258,0.30375133,605.83,604.57,0.29857904]
[1743232383560,0.30375133,605.83,604.58,0.33080816]
[1743232383860,0.30375133,605.83,604.59,0.29857904]
[1743232384361,0.30375133,605.83,604.6,0.33079722]
[1743232384554,0.30375133,605.83,604.61,0.29857904]
[1743232384863,0.591338,605.82,604.61,0.29857904]
[1743232385163,0.30375133,605.81,604.61,0.29857904]
[1743232385363,0.30375133,605.81,604.61,0.62937079]
[1743232385564,0.30375133,605.81,604.62,0.33078627]
[1743232385859,0.28758667,605.82,604.63,0.29857904]
[1743232386162,0.28758667,605.82,604.64,0.33077533]
[1743232386364,0.28758667,605.82,604.65,0.29857904]
[1743232386557,0.28758667,605.82,604.65,0.6293489]
[1743232386757,0.28758667,605.82,604.65,1.4393489]
[1743232386959,0.28758667,605.82,604.66,0.29857904]
[1743232387261,0.30371707,605.81,604.65,1.14076986]
[1743232387764,0.30371707,605.81,604.66,0.29847643]
[1743232387962,0.30371707,605.8,604.66,0.29847643]
[1743232388265,0.28758786,605.8,604.66,0.29847643]
[1743232388466,0.30371707,605.79,604.66,0.29847643]
[1743232389465,0.30371707,605.79,604.66,1.34047643]
[1743232389661,0.30371707,605.79,604.67,0.29847643]
[1743232390165,0.28758786,605.8,604.66,1.042]
[1743232390765,0.30375268,605.79,604.66,1.042]
[1743232390967,0.28758786,605.8,604.66,1.042]
[1743232391267,0.30375151,605.79,604.66,1.042]
[1743232392967,0.28758786,605.8,604.66,1.042]
[1743232393562,0.33011471,605.85,604.66,1.042]
[1743232393765,0.30374352,605.84,604.66,1.042]
[1743232393966,0.28758667,605.79,604.66,1.042]
[1743232395263,0.28758667,605.79,604.66,1.754]
[1743232395470,0.30374389,605.78,604.66,1.754]
[1743232395869,0.28758667,605.79,604.66,1.754]
[1743232396669,0.33011471,605.85,604.66,1.754]
[1743232396869,0.28759618,605.78,604.66,1.754]
[1743232403073,0.61774904,605.78,604.66,1.754]
[1743232403274,0.33015831,605.77,604.66,1.754]
[1743232403475,0.30376495,605.76,604.66,1.754]
[1743232403669,0.30381967,605.75,604.66,1.754]
[1743232403869,0.30381967,605.74,604.66,1.754]
[1743232404077,0.30381967,605.73,604.66,1.754]
[1743232404272,0.33018556,605.72,604.66,1.754]
[1743232404671,0.30381967,605.71,604.66,1.754]
[1743232404870,0.33019646,605.7,604.66,1.754]
[1743232405272,0.30381967,605.69,604.66,1.754]
[1743232405476,0.33020737,605.68,604.66,1.754]
[1743232405673,0.30381967,605.67,604.66,1.754]
[1743232405875,0.33021827,605.66,604.66,1.754]
[1743232406178,0.30381967,605.65,604.66,1.754]
[1743232407178,0.33021827,605.66,604.66,1.754]
[1743232407474,0.30382689,605.64,604.66,1.754]
[1743232407677,0.30382689,605.63,604.66,1.754]
[1743232407977,0.30382689,605.65,604.66,1.754]
[1743232408173,0.30382689,605.62,604.66,2.69]
[1743232408377,0.30382689,605.64,604.66,2.69]
[1743232408678,0.30382689,605.63,604.66,2.69]
[1743232408874,0.30382689,605.65,604.66,2.69]
[1743232409078,0.28765917,605.63,604.66,2.69]
[1743232409280,0.33024008,605.62,604.66,3.44]
[1743232409477,0.30382689,605.61,604.66,3.44]
[1743232409679,0.63407242,605.61,604.66,3.44]
[1743232409875,0.30382689,605.6,604.66,3.44]
[1743232410279,0.30382689,605.6,604.66,4.398]
[1743232411077,0.63407788,605.6,604.66,4.398]
[1743232411279,0.30382689,605.59,604.66,4.398]
[1743232411977,0.28768058,605.58,604.66,4.398]
[1743232412176,0.30382689,605.57,604.66,4.398]
[1743232412481,0.3302728,605.56,604.66,4.398]
[1743232412678,0.30382689,605.55,604.66,4.398]
[1743232413177,0.33028371,605.54,604.66,4.398]
[1743232413375,0.30382689,605.53,604.66,4.398]
[1743232413576,0.33029462,605.52,604.66,4.398]
[1743232413781,0.30382689,605.51,604.66,4.398]
[1743232414685,0.33029462,605.52,604.66,4.398]
[1743232423792,0.287614,605.7,604.66,4.398]
[1743232426092,0.30378834,605.69,604.66,4.398]